Cogmind - Beta 13 @@@ ROGUE MODE // 2024.04.09 @ 18:28:03 Player: Olafz Result: Destroyed by Y-45 Defender with Heavy Assault Rifle Performance ------------- Evolutions (1) 500 Regions Visited (2) 400 Robots Destroyed (29) 145 Value Destroyed (665) 665 Prototype IDs (4) 80 Alien Tech Used (0) 0 Bonus (0) 0 TOTAL SCORE: 1790 Bonus ------- None Cogmind --------- Core Integrity 0/400 Matter 263/300 Energy 98/100 System Corruption 0% Temperature Cool (10) Movement Treading (160) Location -9/Materials Parts ------- > --- POWER (1) -------- (None) > --- PROPULSION (2) --- Light Treads > --- UTILITY (4) ------ Large Storage Unit Hacking Suite > --- WEAPON (2) ------- (None) > --- INVENTORY (15) --- Light Ion Engine Aluminum Leg Aluminum Leg Aluminum Leg Aluminum Leg Aluminum Leg Small Storage Unit Peak State ------------ > --- POWER ------------ Ion Engine > --- PROPULSION ------- Improved Aluminum Leg Improved Aluminum Leg > --- UTILITY ---------- Improved Heat Sink Large Storage Unit Hacking Suite > --- WEAPON ----------- Light Assault Rifle Heavy Assault Rifle > --- INVENTORY -------- Light Ion Engine Light Ion Engine Light Treads Aluminum Leg Aluminum Leg Aluminum Leg Aluminum Leg Aluminum Leg Small Storage Unit Medium Laser Assault Rifle [Rating: 16] Favorites ----------- Power Light Nuclear Core Engine Ion Engine Power Core Light Nuclear Core Propulsion Aluminum Leg Treads Light Treads Leg Aluminum Leg Flight Unit Flight Unit Utility Hacking Suite Device Improved Heat Sink Storage Small Storage Unit Hackware Hacking Suite Weapon Light Assault Rifle Energy Gun Medium Laser Ballistic Gun Light Assault Rifle Build | -11 -10 -9 ------- Run | Yrd Mat Mat Slots Evolved 2 | . . 2 Power . | . . . Propulsion . | . . . Utility 2 | . . 2 Weapon . | . . . Parts Attached 20 | . 8 12 Power 3 | . 2 1 Engine 2 | . 1 1 Core 1 | . 1 . Reactor . | . . . Propulsion 7 | . 3 4 Treads 1 | . . 1 Leg 5 | . 3 2 Wheel . | . . . Hover . | . . . Flight 1 | . . 1 Utility 3 | . 2 1 Device 1 | . . 1 Storage 1 | . 1 . Processor . | . . . Hackware 1 | . 1 . Protection . | . . . Artifact . | . . . Weapon 7 | . 1 6 Energy Gun 1 | . . 1 Energy Cannon . | . . . Ballistic Gun 6 | . 1 5 Ballistic Cannon . | . . . Launcher . | . . . Special Weapon . | . . . Impact Weapon . | . . . Slashing Weapon . | . . . Piercing Weapon . | . . . Special Melee Weapon . | . . . Unidentified Prototypes . | . . . Parts Lost 13 | . 1 12 Power 3 | . 1 2 Propulsion 3 | . . 3 Utility 1 | . . 1 Weapon 6 | . . 6 Highest Loss Streak 11 | . 1 11 To Critical Strikes . | . . . Average Slot Usage (%) 87 | . 95 74 Engine 5 | . 2 8 Core 6 | . 10 . Leg 22 | . 28 15 Device 2 | . . 5 Storage 12 | . 14 11 Hackware 10 | . 10 11 Ballistic Gun 24 | . 28 20 Naked Turns . | . . . Heaviest Build 30 | 12 28 30 Greatest Support 26 | 20 20 26 Greatest Overweight (x) 7 | . 1 7 Average Overweight (x) . | . . 1 Largest Inventory Capacity 15 | . 15 15 Average Capacity 11 | . 8 15 Most Carried 12 | . 7 12 Average Carried 6 | . 3 9 Final Capacity 15 | 8 15 15 Final Carried 7 | 6 7 7 Class Distribution -------------------- 77% | Mutant 22% | Scavenger-Mutant Dominant Class ---------------- Mutant | -10/Materials Mutant | -9/Materials Resources | -11 -10 -9 ----------- Run | Yrd Mat Mat Matter Collected 601 | 200 142 259 Remotely . | . . . Salvage Created 942 | . 314 628 Parts 61 | . 17 44 Haulers Intercepted . | . . . Recyclers Shooed 1 | . . 1 Parts Field Recycled . | . . . Retrieved Matter . | . . . Parts Self-Destructed . | . . . Prevented . | . . . Kills | -11 -10 -9 ------- Run | Yrd Mat Mat Combat Hostiles Destroyed 23 | . 8 15 Guns 23 | . 8 15 Classes Destroyed 7 | . 4 3 Worker 3 | . 1 2 Recycler 1 | . . 1 Mechanic 1 | . . 1 Operator 1 | . 1 . Swarmer 9 | . 2 7 Grunt 12 | . 6 6 Sentry 2 | . . 2 Best Kill Streak 9 | . 2 9 Combat Bots Only 7 | . 2 7 Max Kills in Single Turn 2 | . 1 2 Gunslinging 1 | . . 1 Exploded . | . . . Melee . | . . . Uniques/NPCs Destroyed . | . . . Combat | -11 -10 -9 -------- Run | Yrd Mat Mat Hostile Shots Fired 248 | . 50 198 Missed 77 | . 14 63 Damage Taken 1893 | . 425 1468 Core 478 | . 77 401 Absorbed by Shields . | . . . Core Remaining (%) 84 | 100 69 . Volleys Fired 83 | . 39 44 Largest 2 | . 2 2 Hottest 70 | . 40 70 Shots Fired 165 | . 78 87 Gun 165 | . 78 87 Cannon . | . . . Launcher . | . . . Special . | . . . Kinetic 156 | . 78 78 Thermal 9 | . . 9 Explosive . | . . . Electromagnetic . | . . . Robot Hit Streak 8 | . 8 5 Robot Miss Streak 6 | . 3 6 Penetration Max . | . . . Secondary Targets 6 | . . 6 Max Gunslinging Chain 1 | . . 1 Shots Hit Robots 89 | . 43 46 Core Hits 50 | . 16 34 Critical Kills 3 | . 2 1 Critical Parts Destroyed . | . . . Critical Strikes 4 | . 2 2 Burn 1 | . . 1 Destroy 3 | . 2 1 Melee Attacks . | . . . Impact . | . . . Slashing . | . . . Piercing . | . . . Sneak Attacks . | . . . Combat Hostiles . | . . . Follow-up Attacks . | . . . Damage Inflicted 1037 | . 482 555 Guns 1031 | . 476 555 Cannons . | . . . Explosions . | . . . Melee . | . . . Ramming 6 | . 6 . Kinetic 956 | . 476 480 Thermal 75 | . . 75 Explosive . | . . . Electromagnetic . | . . . Impact . | . . . Slashing . | . . . Piercing . | . . . Highest Corruption . | . . . Average Corruption . | . . . Corruption Purged . | . . . Corruption Blocked . | . . . Overload Shots . | . . . Overflow Damage . | . . . Projectiles . | . . . Explosions . | . . . Melee . | . . . Knockbacks . | . . . Impact . | . . . Kinetic . | . . . Secondary . | . . . Self-Inflicted Damage . | . . . Shots . | . . . Rammed . | . . . Targets Rammed 1 | . 1 . Kicked 1 | . 1 . Crushed . | . . . Highest Temperature 55 | . 25 55 Average Temperature 9 | . 6 17 Received Heat Transfer 786 | . 249 537 Siege Activations . | . . . Robots Corrupted . | . . . Combat Hostiles . | . . . Parts Fried . | . . . Impact Corruptions . | . . . Robots Melted . | . . . Combat Hostiles . | . . . Parts Melted 1 | . . 1 Heat Transferred 296 | . . 296 Parts Sabotaged . | . . . Parts Stolen . | . . . Parts Stripped . | . . . Power Chain Reactions . | . . . Alert | -11 -10 -9 ------- Run | Yrd Mat Mat Peak Influence 372 | . 135 372 Initial 22 | . . 22 Average 106 | . 44 201 Maximum Alert Level 1 | . . 1 Low Security (%) 81 | . 100 53 Level 1 18 | . . 46 Level 2 . | . . . Level 3 . | . . . Level 4 . | . . . Level 5 . | . . . High Security . | . . . Max Security . | . . . Squads Dispatched 3 | . 2 1 Investigation 1 | . 1 . Extermination . | . . . Reinforcement 2 | . 1 1 Assault . | . . . Garrison . | . . . Intercept . | . . . Searches Triggered . | . . . Construction Impeded . | . . . Haulers Reinforced . | . . . Active Scanning Responses . | . . . Cargo Convoy Interrupts . | . . . Stealth | -11 -10 -9 --------- Run | Yrd Mat Mat Distress Signals 3 | . 1 2 Communications Jammed . | . . . Distress Signals . | . . . Times Spotted 37 | . 14 23 Peak Tracking Total 8 | . 5 8 Tactical Retreats . | . . . Traps | -11 -10 -9 ------- Run | Yrd Mat Mat Traps Triggered . | . . . Indirectly . | . . . Trap Hack Attempts . | . . . Triggered . | . . . Disarmed . | . . . Reprogrammed . | . . . Reused . | . . . Traps Extracted . | . . . Installed . | . . . Triggered . | . . . Machines | -11 -10 -9 ---------- Run | Yrd Mat Mat Machines Disabled . | . . . Max in Single Turn . | . . . Machines Repaired . | . . . Machines Dismantled . | . . . Machines Sabotaged . | . . . Overloaded Fab Kills . | . . . Hacking | -11 -10 -9 --------- Run | Yrd Mat Mat Machines Accessed 7 | . 5 2 Terminals 7 | . 5 2 Fabricators . | . . . Repair Stations . | . . . Recycling Units . | . . . Scanalyzers . | . . . Garrison Access . | . . . Total Hacks 30 | . 22 8 Successful 16 | . 10 6 Failed 14 | . 12 2 Catastrophic 1 | . 1 . Database Lockouts . | . . . Manual 22 | . 17 5 Terminals 30 | . 22 8 Fabricators . | . . . Repair Stations . | . . . Recycling Units . | . . . Scanalyzers . | . . . Garrison Access . | . . . Terminal Hacks 8 | . 5 3 Robot Analysis 1 | . 1 . Prototype ID Bank 3 | . 1 2 Unreport Threat 1 | . 1 . Hauler Manifests 1 | . 1 . Zone Layout 2 | . 1 1 Fabricator Hacks . | . . . Repair Station Hacks . | . . . Recycling Unit Hacks . | . . . Scanalyzer . | . . . Garrison Access Hacks . | . . . Unauthorized Hacks 8 | . 5 3 Terminals 8 | . 5 3 Botnet 6 | . 4 2 Operators 2 | . 1 1 Fabricators . | . . . Repair Stations . | . . . Recycling Units . | . . . Scanalyzers . | . . . Garrison Access . | . . . Data Cores Recovered . | . . . Used . | . . . Hacking Detections 6 | . 5 1 Full Trace Events 2 | . 2 . Feedback Events . | . . . Feedback Blocked . | . . . Robot Schematics Acquired . | . . . Robots Built . | . . . Authchips . | . . . Time . | . . . Total Robot Build Rating . | . . . Part Schematics Acquired . | . . . Parts Built . | . . . Authchips . | . . . Time . | . . . Total Part Build Rating . | . . . Parts Repaired . | . . . Time . | . . . Parts Recycled . | . . . Recycled Matter . | . . . Retrieved Matter . | . . . Retrieved Components . | . . . Parts Scanalyzed . | . . . Part Schematics Acquired . | . . . Parts Damaged . | . . . Bothacking | -11 -10 -9 ------------ Run | Yrd Mat Mat Used RIF Installer . | . . . Robots Hacked . | . . . Non-combat . | . . . Combat . | . . . Robot Hacks Applied . | . . . Relay Couplers Released . | . . . Fabnet Peak Effective % . | . . . Robots Rewired . | . . . Allies Hacked . | . . . Hacks Repelled . | . . . Allies | -11 -10 -9 -------- Run | Yrd Mat Mat Total Allies . | . . . Largest Group . | . . . Highest-Rated Group . | . . . Highest-Rated Ally . | . . . Total Orders . | . . . Ally Attacks . | . . . Total Damage . | . . . Kills . | . . . Allies Corrupted . | . . . Allies Melted . | . . . Intel | -11 -10 -9 ------- Run | Yrd Mat Mat Robot Analysis Total 1 | . 1 . Derelict Logs Recovered . | . . . Drone Launches . | . . . Drone Recoveries . | . . . Exploration | -11 -10 -9 ------------- Run | Yrd Mat Mat Turns Passed 805 | . 488 317 Spaces Moved 373 | 1 286 86 Core 4 | . . 4 Treads 4 | . . 4 Legs 364 | 1 286 77 Wheels . | . . . Hover . | . . . Flight 1 | . . 1 Fastest Speed 120 | 120 120 160 Average Speed 145 | 120 126 208 Slowest Speed 440 | 120 190 440 Overloaded Moves . | . . . Propulsion Burnouts . | . . . Robots Hopped . | . . . Cave-ins Triggered . | . . . Exploration Rate (%) 20 | 2 48 11 Regions Visited 2 Branch Regions . Pre-discovered Areas . | . . . Known Exits Taken . | . . . Unknown Exits Taken 2 | 1 1 . Scrap Searched . | . . . Spaces Dug . | . . . Terrain Destroyed . | . . . Melee . | . . . Projectile . | . . . AOE . | . . . Terrain Rammed . | . . . Walls Destroyed . | . . . Machines Disabled . | . . . Actions | -11 -10 -9 --------- Run | Yrd Mat Mat Total 484 | . 341 143 Wait 4 | . 4 . Move 371 | . 285 86 Hop . | . . . Pick Up 1 | . . 1 Fast Attach 5 | . 2 3 Attach 5 | . . 5 Detach . | . . . Swap 10 | . 6 4 Drop 4 | . 4 . Fire 83 | . 39 44 Melee . | . . . Ram . | . . . Kick 1 | . 1 . Crush . | . . . Escape Stasis . | . . . Rewire . | . . . Trap . | . . . Miscellaneous . | . . . Route ------- -11/Scrapyard -10/Materials (discovered 3 exits: *Mat x2 / [*Min]) -9/Materials History --------- Turn | Location | Event 1 | -11/Scrapyard | Discovered new exit (range 0) 1 | -11/Scrapyard | Entered Materials 116 | -10/Materials | Discovered new exit (range 10) 304 | -10/Materials | Build established: Mutant 335 | -10/Materials | Discovered new exit (range 8) 411 | -10/Materials | Discovered new exit (range 16) 489 | -10/Materials | Entered another Materials area 489 | -9/Materials | Evolved 2 slots: Utility x2 717 | -9/Materials | Destroyed 7 combat bots 764 | -9/Materials | Core integrity fell below 50% 776 | -9/Materials | Core integrity fell below 20% 806 | -9/Materials | Destroyed by Y-45 Defender with Heavy Assault Rifle Last Messages --------------- R-06 Scavenger collects Lgt. Ion Engine. G-34 Mercenary destroyed. Lgt. Assault Rifle destroyed. Critical hit (Burn: +37). S-10 Pest destroyed. G-34 Mercenary suffers critical hit (Burn). Aluminum Leg melted. G-34 Mercenary destroyed. Switching to secondary target: Y-45 Defender. S-10 Pest destroyed. Switching to secondary target: Y-45 Defender. Lgt. Ion Engine destroyed. Critical hit (Burn: +37). Imp. Heat Sink destroyed. G-47 Trooper destroyed. Switching to secondary target: Y-45 Defender. Med. Laser destroyed. Lgt. Assault Rifle destroyed. Assault Rifle destroyed. W-16 Scout destroyed. Map ----- +----------------------------------------------------+ | | | | | | | | | | | | | | | | | | | ??????????????????????????????????????????????? | | ??????????????????????????????????????????????? | | ??????????????????????????????????????????????? | | ??????????????????????????????????????????????? | | ??????????????????????????????????????????????? | | ??????????????????????????????????????????????? | | ??????????????????????????????????????????????? | | ????????????????????########??????????????????? | | ????????????????????# # ?????##???????????? | | ????????????????????# # ???? ??????????? | | ????????????????????# # """ ???????????? | | ????????????????????# # """ "???????????? | | ????????????????????# # """ ????????????? | | ?????????????????????# ! ## ???????????### | | ?????????????????????#=!=## ????######### | | ?????????????????????#%*%## ?????# ## T | | ?????????????????????#@%*##! ??????# ## | | ??????? # #######[Y*##"######### """ ## [ | | ????????"" +" *[==!%=%== ## """ ## | | ???????????#%" %%=**=** ## """ ## | | ???????????#" "T" =!% *% #?? ## | | ???????????# #######+###### #####+###### | | ???????????# ?????? ???# =!===o | | ???????????# ???????"" ""??# *%!%*%= | | ???????????#[ ??????""" """ # **! | | ???????????# """???????""" """ # ####### | | ???????????# """?????? # #?????? | | ???????????# ??????????? # #?????? | | ???????????????????????? # #??#### | | ?????????????????????????? # ?????? | | ????????????????????????????###### ????? | | ?????????????????????????????????# ???? | | ?????????????????????????????????#+## ###???? | | ????????????????????????????????? ??# #?????? | | ????????????????????????????????????# #?????? | | ????????????????????????????????????# #?????? | | ????????????????????????????????????# #?????? | | ????????????????????????????????????# ??????? | | ????????????????????????????????????# ??????? | | ????????????????????????????????????# ??????? | | ????????????????????????????????????? ??????? | +----------------------------------------------------+ Best States ------------- Heat Dissipation 42 Energy Generation 14 Energy Capacity 250 Matter Stores 300 Matter Capacity 300 Sight Range 16 Terrain Scan Density 10 Evasion (%) 55 Recoil Reduction 1 Offensive Hacking 10 Item Schematics ----------------- None Robot Schematics ------------------ None Fabricated ------------ Nothing Alien Tech Used ----------------- None Achievements -------------- None Challenges ------------ None Game ------ Seed SniperBackupNanovents Manual? 0 Play Time 00:12:05 Cumulative 37.5 hours Start 2024.04.09 @ 18:19:07 End 2024.04.09 @ 18:28:03 Sessions 1 Manual Loads 0 Difficulty Rogue Special Mode None Game No. 100 Rogue 98 Adventurer 2 Explorer 0 Win Type - Total 0 Types 0/0/0/0/0/0/0/0/0 Lore% 28 Gallery% 35 Achievement% 26 Wizard Run 0 Options --------- Layout 2 ASCII 0 Keyboard 1 Movement Numpad Keybinds 1 Fullscreen 2 Font 24/Smallcaps Map View 50x44 Zoom Use 0% Tactical HUD 1 Map Filters NONE Filters NONE Steam 1 RUN: f99e1dc7-3f08-4d9a-a763-896ea26f6351